[Event "1000GM NY Winter IM-C 2024"]
[Site "New York"]
[Date "2024.01.13"]
[Round "3.3"]
[White "Chabris, Christopher"]
[Black "Hajnal, Zoltan"]
[Result "1/2-1/2"]
[ECO "C95"]
[WhiteElo "2078"]
[BlackElo "2383"]
[Annotator "ChessBase"]
[PlyCount "117"]
[EventDate "2024.01.10"]
[EventType "swiss"]
[EventCountry "USA"]
[SourceTitle "playchess.com"]
[Source "ChessBase"]
[SourceQuality "1"]
[TimeControl "5400+30"]

1. e4 {[%emt 0:00:03]} e5 {[%emt 0:00:05]} 2. Nf3 {[%emt 0:00:04]} Nc6 {[%emt 0:00:05]} 3. Bb5 {[%emt 0:00:04]} a6 {[%emt 0:00:05]} 4. Ba4 {[%emt 0:00:07]} Nf6 {[%emt 0:00:06]} 5. O-O {[%emt 0:00:06]} Be7 {[%emt 0:00:04]} 6. Re1 {[%emt 0:00:06]} b5 {[%emt 0:00:04]} 7. Bb3 {[%emt 0:00:04]} d6 {[%emt 0:00:04]} 8. c3 {[%emt 0:00:07]} O-O {[%emt 0:00:06]} 9. h3 {[%emt 0:00:07]} Nb8 {[%emt 0:00:10]} 10. d4 {[%emt 0:00:11]} Nbd7 {[%emt 0:00:06]} 11. Nbd2 {[%emt 0:00:18]} Bb7 {[%emt 0:00:06]} 12. Bc2 {[%emt 0:00:18]} Re8 {[%emt 0:00:09]} 13. Nf1 {[%emt 0:00:17]} Bf8 {[%emt 0:00:13]} 14. Ng3 {[%emt 0:00:16]} g6 {[%emt 0:00:29]} 15. a4 {[%emt 0:00:18]} c6 {[%emt 0:00:26]} 16. Bg5 {[%emt 0:10:28]} h6 {[%emt 0:07:02]} 17. Be3 {[%emt 0:01:55]} Bg7 {[%emt 0:00:35]} 18. Bd3 {[%emt 0:08:20]} Qc7 {[%emt 0:02:22]} 19. dxe5 {[%emt 0:05:52]} dxe5 {[%emt 0:01:45]} 20. b4 {[%emt 0:04:42]} Rad8 {[%emt 0:04:36]} 21. Qe2 {[%emt 0:03:58]} Bf8 {[%emt 0:08:04]} 22. Rec1 {[%emt 0:09:12]} Nb6 {[%emt 0:05:12]} 23. c4 {[%emt 0:13:38]} bxc4 {[%emt 0:11:20]} 24. Bxc4 {[%emt 0:00:36]} Nxc4 {[%emt 0:15:49]} 25. Rxc4 {[%emt 0:10:24]} Qd6 {[%emt 0:18:27]} 26. Rac1 {[%emt 0:01:47]} Qd3 {[%emt 0:01:40]} 27. Qb2 {[%emt 0:01:28]} Nd7 {[%emt 0:01:32]} 28. Nd2 {[%emt 0:14:27]} Ba8 {[%emt 0:03:01]} 29. Nb3 {[%emt 0:01:25]} Rb8 {[%emt 0:00:48]} 30. R4c3 {[%emt 0:02:50]} Qd6 {[%emt 0:00:32]} 31. Nc5 {[%emt 0:00:34]} Nxc5 {[%emt 0:04:45]} 32. Bxc5 {[%emt 0:00:09]} Qc7 {[%emt 0:02:19]} 33. Bxf8 {[%emt 0:00:37]} Kxf8 {[%emt 0:00:51]} 34. Qd2 {[%emt 0:01:33]} Kg7 {[%emt 0:01:03]} 35. Rc5 {[%emt 0:05:06]} Rbd8 {[%emt 0:02:57]} 36. Qe2 {[%emt 0:00:51]} Qb6 {[%emt 0:01:07]} 37. R1c4 {[%emt 0:03:40]} Rd4 {[%emt 0:01:59]} 38. h4 {[%emt 0:00:44]} Qd8 {[%emt 0:03:37]} 39. Rxd4 {[%emt 0:01:00]} Qxd4 {[%emt 0:01:12]} 40. Rc4 {[%emt 0:00:33]} Qa1+ {[%emt 0:01:01]} 41. Kh2 {[%emt 0:00:12]} h5 {[%emt 0:00:16]} 42. Rc5 {[%emt 0:01:29]} Qd4 {[%emt 0:01:08]} 43. Rc4 {[%emt 0:00:32]} Qd8 {[%emt 0:01:51]} 44. Rc3 {[%emt 0:01:12]} Qxh4+ {[%emt 0:00:34]} 45. Kg1 {[%emt 0:00:04]} Bb7 {[%emt 0:00:17]} 46. Rd3 {[%emt 0:00:39]} Rd8 {[%emt 0:01:07]} 47. Qd2 {[%emt 0:00:47]} Rxd3 {[%emt 0:00:10]} 48. Qxd3 {[%emt 0:00:05]} Qe7 {[%emt 0:00:14]} 49. Qe3 {[%emt 0:00:33]} h4 {[%emt 0:01:09]} 50. Nf1 {[%emt 0:00:07]} Qxb4 {[%emt 0:00:06]} 51. Kh2 {[%emt 0:01:05]} c5 {[%emt 0:01:14]} 52. f3 {[%emt 0:00:31]} Qd4 {[%emt 0:01:24]} 53. Qg5 {[%emt 0:00:28]} f6 {[%emt 0:00:26]} 54. Qxh4 {[%emt 0:00:05]} c4 {[%emt 0:00:28]} 55. Qg4 {[%emt 0:00:42]} Qd6 {[%emt 0:00:55]} 56. Ne3 {[%emt 0:00:20]} Kf7 {[%emt 0:00:42]} 57. Qh4 {[%emt 0:01:10]} Kg7 {[%emt 0:00:04]} 58. Qg4 {[%emt 0:00:08]} Kf7 {[%emt 0:00:04]} 59. Qh4 {[%emt 0:00:13]} 1/2-1/2

[Event "1000GM NY Winter IM-C 2024"]
[Site "New York"]
[Date "2024.01.13"]
[Round "3.4"]
[White "Ho, Carter"]
[Black "Pressman, Leif"]
[Result "0-1"]
[ECO "C50"]
[WhiteElo "2180"]
[BlackElo "2258"]
[Annotator "RC"]
[PlyCount "84"]
[EventDate "2024.01.10"]
[EventType "swiss"]
[EventCountry "USA"]
[SourceTitle "playchess.com"]
[Source "ChessBase"]
[SourceQuality "1"]
[TimeControl "5400+30"]

1. e4 {[%emt 0:00:34]} e5 {[%emt 0:00:25]} 2. Nf3 {[%emt 0:00:07]} Nc6 {[%emt 0:00:17]} 3. Bc4 {[%emt 0:00:22]} Bc5 {[%emt 0:02:08]} 4. O-O {[%emt 0:00:08]} Nf6 {[%emt 0:00:22]} 5. d3 {[%emt 0:00:04]} a5 {[%emt 0:00:18]} 6. a4 {[%emt 0:01:05]} O-O {[%emt 0:02:11]} 7. Nbd2 {[%emt 0:01:36]} h6 {[%emt 0:03:17]} 8. h3 {[%emt 0:00:42]} d6 {[%emt 0:00:31]} 9. Re1 {[%emt 0:00:18]} Be6 {[%emt 0:01:08]} 10. c3 {[%emt 0:21:00]} Qb8 {[%emt 0:05:11]} 11. Bxe6 {[%emt 0:05:08]} fxe6 {[%emt 0:00:03]} 12. Qb3 {[%emt 0:01:03]} Qe8 {[%emt 0:08:01]} 13. Qc4 {[%emt 0:01:56]} Nh5 {[%emt 0:02:29]} 14. d4 {[%emt 0:04:24]} Bb6 {[%emt 0:01:42]} 15. d5 {[%emt 0:07:13]} Ne7 {[%emt 0:06:05]} 16. dxe6 {[%emt 0:07:49]} Qg6 {[%emt 0:02:42]} 17. Qf1 {[%emt 0:03:28]} Nf4 {[%emt 0:09:44]} 18. Kh2 {[%emt 0:00:55]} Qxe6 {[%emt 0:04:06]} 19. Nc4 {[%emt 0:04:08]} Bxf2 {[%emt 0:04:16]} 20. Qxf2 {[%emt 0:00:31]} Qxc4 {[%emt 0:01:04]} 21. Qh4 {[%emt 0:00:48]} Rae8 {[%emt 0:08:10]} 22. Bxf4 {[%emt 0:00:43]} Rxf4 {[%emt 0:00:26]} 23. Qh5 {[%emt 0:00:24]} Ref8 {[%emt 0:00:44]} 24. Re3 {[%emt 0:01:24]} b6 {[%emt 0:07:23]} 25. Nd2 {[%emt 0:04:38]} Qf7 {[%emt 0:03:28]} 26. Qxf7+ {[%emt 0:00:14]} Kxf7 {[%emt 0:00:57]} 27. b4 {[%emt 0:01:24]} Nc6 {[%emt 0:01:22]} 28. b5 {[%emt 0:00:26]} Nb8 {[%emt 0:01:15]} 29. Rf1 {[%emt 0:00:50]} Ke6 {[%emt 0:01:08]} 30. Rd1 {[%emt 0:01:14]} Nd7 {[%emt 0:00:53]} 31. Nb3 {[%emt 0:04:03]} Rf2 {[%emt 0:02:36]} 32. Rg3 {[%emt 0:00:14]} g5 {[%emt 0:01:13]} 33. c4 {[%emt 0:00:47]} R8f4 {[%emt 0:01:43]} 34. c5 {[%emt 0:00:31]} Nxc5 {[%emt 0:00:53]} 35. Nxc5+ {[%emt 0:00:09]} bxc5 {[%emt 0:00:18]} 36. b6 {[%emt 0:00:37]} Rxe4 {[%emt 0:01:32]} 37. bxc7 {[%emt 0:00:57]} Rf8 {[%emt 0:01:09]} 38. Rb3 {[%emt 0:01:20]} Rb4 {[%emt 0:01:34]} 39. Rf1 {[%emt 0:01:03]} Rc8 {[%emt 0:00:27]} 40. Rbf3 {[%emt 0:00:41]} Rf4 {[%emt 0:00:17]} 41. Rb1 {[%emt 0:00:23]} Rxf3 {[%emt 0:01:03]} 42. Rb8 {[%emt 0:00:08]} Rff8 {[%emt 0:00:14]} 0-1

[Event "1000GM NY Winter IM-C 2024"]
[Site "New York"]
[Date "2024.01.13"]
[Round "3.5"]
[White "Martin Del Campo Cardenas, Roberto Abel"]
[Black "Tanenbaum, Zachary"]
[Result "1/2-1/2"]
[ECO "C63"]
[WhiteElo "2205"]
[BlackElo "2272"]
[Annotator "TA"]
[PlyCount "70"]
[EventDate "2024.01.10"]
[EventType "swiss"]
[EventCountry "USA"]
[SourceTitle "playchess.com"]
[Source "ChessBase"]
[SourceQuality "1"]
[TimeControl "5400+30"]

{[%evp 9,70,0,0,0,0,16,0,0,0,0,0,-6,-25,-15,-12,-16,-16,-22,-27,-27,-19,-32,-19,-29,-24,-41,-14,-51,0,0,0,0,0,0,0,0,53,56,47,45,63,47,46,0,23,26,43,37,50,43,43,43,43,43,43,43,142,144,135,84,145,20,44]} 1. e4 {[%emt 0:03:38]} e5 {[%emt 0:13:57]} 2. Nf3 {[%emt 0:00:13]} Nc6 {[%emt 0:00:08]} 3. Bb5 {[%emt 0:00:28]} f5 {[%emt 0:00:02]} 4. Nc3 {[%emt 0:02:06]} fxe4 {[%emt 0:00:02]} 5. Bxc6 {[%emt 0:01:45]} bxc6 {[%emt 0:00:04]} 6. Nxe4 {[%emt 0:06:08]} d5 {[%emt 0:00:02]} 7. Ng3 {[%emt 0:00:06]} Bg4 {[%emt 0:00:06]} 8. h3 {[%emt 0:00:36]} Bxf3 {[%emt 0:00:07]} 9. Qxf3 {[%emt 0:00:03]} Bd6 {[%emt 0:00:07]} 10. d3 {[%emt 0:03:16]} Nf6 {[%emt 0:00:09]} 11. Nf5 {[%emt 0:01:16]} Qd7 {[%emt 0:07:25]} 12. Nxd6+ {[%emt 0:02:46]} cxd6 {[%emt 0:00:11]} 13. O-O {[%emt 0:05:43]} O-O {[%emt 0:00:30]} 14. Qe2 {[%emt 0:00:30]} Rae8 {[%emt 0:00:30]} 15. Bd2 {[%emt 0:00:30]} d4 {[%emt 0:00:30]} 16. c3 {[%emt 0:00:30]} Qf5 {[%emt 0:00:30]} 17. f3 {[%emt 0:00:30][%cal Bf2f3,Bf3f4,Bf4f5][%mdl 32]} c5 {[%emt 0:00:30]} 18. c4 {[%emt 0:00:30]} Re6 {[%emt 0:00:30]} ({Black should try} 18... Nh5 $15 19. Qe4 Nf4 20. Bxf4 exf4) 19. g4 $11 {[%emt 0:00:30]} Qg6 {[%emt 0:00:30]} 20. f4 $36 {[%emt 0:00:30][%mdl 2048] [#] Threatens to win with f5. Black is under pressure.} Qf7 {[%emt 0:00:30]} 21. f5 {[%emt 0:00:30]} Ree8 {[%emt 0:00:30]} 22. g5 {[%emt 0:00:30]} Nd7 {[%emt 0:00:30]} (22... Nh5 $11 23. Qf3 Nf4 24. Bxf4 exf4 25. Qxf4 Re5) 23. Qe4 {[%emt 0:00:30]} Nb6 {[%emt 0:00:30]} 24. Rac1 {[%emt 0:00:30]} Qd7 {[%emt 0:00:30][%cal Og7g6]} 25. Rf2 {[%emt 0:00:30]} Rf7 {[%emt 0:00:30]} 26. Kh2 {[%emt 0:00:30]} (26. b3 $14 {is more appropriate.}) 26... Qb7 {[%emt 0:00:30]} 27. b3 {[%emt 0:00:30]} Ref8 {[%emt 0:00:30]} 28. Kg3 {[%emt 0:00:30] And now g6 would win.} Qxe4 {[%emt 0:00:30]} 29. dxe4 {[%emt 0:00:30]} g6 {[%emt 1:12:12]} 30. f6 {[%emt 0:50:08]} h5 {[%emt 0:00:29]} 31. gxh6 {[%emt 0:02:56]} Nd7 {[%emt 0:01:09]} 32. Rcf1 {[%emt 0:10:25]} Rxf6 {[%emt 0:00:56] [#]} (32... Kh7 $14) 33. Bg5 $1 $16 {[%emt 0:00:30]} Rxf2 {[%emt 0:00:42]} 34. Rxf2 {[%emt 0:00:03]} Rxf2 {[%emt 0:00:50]} 35. Kxf2 {[%emt 0:00:03] Ke2 would now be deadly.} Kh7 {[%emt 0:00:19] Weighted Error Value: White=0.05 (flawless) /Black=0.14 (very precise) .  Mistake:       	White=1     	Black=3      Inaccurate:     	White=3     	Black=2      OK:         	White=14    	Black=13     Best:        	White=1     	---} 1/2-1/2

[Event "1000GM NY Winter IM-C 2024"]
[Site "New York"]
[Date "2024.01.13"]
[Round "3.6"]
[White "Rohde, Michael"]
[Black "Pagan, Jonathan"]
[Result "1-0"]
[ECO "D37"]
[WhiteElo "2333"]
[BlackElo "2018"]
[Annotator "ChessBase"]
[PlyCount "114"]
[EventDate "2024.01.10"]
[EventType "swiss"]
[EventCountry "USA"]
[SourceTitle "playchess.com"]
[Source "ChessBase"]
[SourceQuality "1"]
[TimeControl "5400+30"]

1. Nf3 {[%emt 0:21:52]} d5 {[%emt 0:00:06]} 2. d4 {[%emt 0:00:04]} Nf6 {[%emt 0:00:06]} 3. c4 {[%emt 0:00:03]} e6 {[%emt 0:00:05]} 4. Nc3 {[%emt 0:00:06]} a6 {[%emt 0:00:06]} 5. cxd5 {[%emt 0:00:44]} exd5 {[%emt 0:00:05]} 6. Bf4 {[%emt 0:00:30]} Bd6 {[%emt 0:05:50]} 7. g3 {[%emt 0:04:02]} O-O {[%emt 0:00:52]} 8. Bg2 {[%emt 0:00:25]} c6 {[%emt 0:05:20]} 9. O-O {[%emt 0:00:52]} Bxf4 {[%emt 0:08:05]} 10. gxf4 {[%emt 0:00:06]} Bf5 {[%emt 0:00:55]} 11. Ne5 {[%emt 0:02:46]} Nbd7 {[%emt 0:00:39]} 12. f3 {[%emt 0:02:05]} h6 {[%emt 0:08:20]} 13. e4 {[%emt 0:01:27]} Bh7 {[%emt 0:00:15]} 14. Qd2 {[%emt 0:01:35]} Qb6 {[%emt 0:06:21]} 15. Bh3 {[%emt 0:06:23]} Rad8 {[%emt 0:02:37]} 16. Nxd7 {[%emt 0:01:16]} Nxd7 {[%emt 0:00:05]} 17. e5 {[%emt 0:00:14]} Rfe8 {[%emt 0:04:54]} 18. Rae1 {[%emt 0:02:24]} f5 {[%emt 0:12:20]} 19. e6 {[%emt 0:07:00]} Nf6 {[%emt 0:00:44]} 20. Re5 {[%emt 0:00:31]} Re7 {[%emt 0:04:08]} 21. Rfe1 {[%emt 0:02:09]} g6 {[%emt 0:01:50]} 22. Na4 {[%emt 0:04:52]} Qc7 {[%emt 0:01:05]} 23. Nc5 {[%emt 0:02:31]} Rde8 {[%emt 0:08:34]} 24. b4 {[%emt 0:02:15]} Qc8 {[%emt 0:03:28]} 25. Bf1 {[%emt 0:04:27]} Kg7 {[%emt 0:01:26]} 26. a4 {[%emt 0:02:32]} Bg8 {[%emt 0:01:16]} 27. Qe3 {[%emt 0:03:58]} Nh5 {[%emt 0:03:09]} 28. Bd3 {[%emt 0:01:57]} Kh8 {[%emt 0:03:19]} 29. Kh1 {[%emt 0:02:28]} Ng7 {[%emt 0:00:44]} 30. Rg1 {[%emt 0:01:45]} Bh7 {[%emt 0:00:52]} 31. Qf2 {[%emt 0:04:50]} Qd8 {[%emt 0:02:29]} 32. Qh4 {[%emt 0:02:22]} h5 {[%emt 0:01:58]} 33. Qf6 {[%emt 0:11:00]} Rf8 {[%emt 0:07:25]} 34. Qg5 {[%emt 0:01:01]} Qd6 {[%emt 0:01:42]} 35. Rge1 {[%emt 0:02:36]} Rfe8 {[%emt 0:02:08]} 36. Qf6 {[%emt 0:01:37]} Kg8 {[%emt 0:02:31]} 37. a5 {[%emt 0:00:21]} Rf8 {[%emt 0:01:06]} 38. Qg5 {[%emt 0:00:12]} Rfe8 {[%emt 0:00:44]} 39. Qf6 {[%emt 0:01:40]} Rf8 {[%emt 0:00:04]} 40. Qg5 {[%emt 0:00:03]} Rfe8 {[%emt 0:00:33]} 41. Qh6 {[%emt 0:01:06]} Nxe6 {[%emt 0:02:03]} 42. Nxe6 {[%emt 0:00:39]} Rxe6 {[%emt 0:00:05]} 43. Bxf5 {[%emt 0:00:16]} Rxe5 {[%emt 0:00:19]} 44. fxe5 {[%emt 0:00:26]} Qf8 {[%emt 0:00:31]} 45. Qxf8+ {[%emt 0:00:30]} Kxf8 {[%emt 0:00:48]} 46. Bd3 {[%emt 0:00:28]} Kg7 {[%emt 0:00:40]} 47. f4 {[%emt 0:00:26]} Rf8 {[%emt 0:00:23]} 48. Rf1 {[%emt 0:00:06]} Bg8 {[%emt 0:00:41]} 49. f5 {[%emt 0:01:10]} gxf5 {[%emt 0:00:32]} 50. Rxf5 {[%emt 0:00:14]} Bf7 {[%emt 0:00:28]} 51. h4 {[%emt 0:00:40]} Rh8 {[%emt 0:00:32]} 52. Kg2 {[%emt 0:00:26]} Rh6 {[%emt 0:00:24]} 53. Rg5+ {[%emt 0:00:19]} Kf8 {[%emt 0:00:28]} 54. Bf5 {[%emt 0:00:19]} Be8 {[%emt 0:00:06]} 55. Kf3 {[%emt 0:00:39]} Rh8 {[%emt 0:00:25]} 56. Kf4 {[%emt 0:00:14]} Rh6 {[%emt 0:00:14]} 57. e6 {[%emt 0:00:33]} Rh8 {[%emt 0:02:05]} 1-0

[Event "1000GM NY Winter IM-C 2024"]
[Site "New York"]
[Date "2024.01.13"]
[Round "3.7"]
[White "Almeida Saenz, Alfonso"]
[Black "Gaw, Chloe"]
[Result "1-0"]
[ECO "D01"]
[WhiteElo "2222"]
[BlackElo "1928"]
[Annotator "RC"]
[PlyCount "79"]
[EventDate "2024.01.10"]
[EventType "swiss"]
[EventCountry "USA"]
[SourceTitle "playchess.com"]
[Source "ChessBase"]
[SourceQuality "1"]
[TimeControl "5400+30"]

1. d4 {[%emt 0:04:51]} d5 {[%emt 0:00:05]} 2. Nc3 {[%emt 0:00:12]} Nf6 {[%emt 0:00:15]} 3. Bg5 {[%emt 0:00:06]} Bf5 {[%emt 0:03:31]} 4. f3 {[%emt 0:00:07]} c6 {[%emt 0:04:22]} 5. e4 {[%emt 0:00:17]} dxe4 {[%emt 0:00:35]} 6. Bxf6 {[%emt 0:00:06]} exf6 {[%emt 0:02:49]} 7. fxe4 {[%emt 0:00:06]} Be6 {[%emt 0:02:53]} 8. Nf3 {[%emt 0:00:25]} Nd7 {[%emt 0:05:08]} 9. Bd3 {[%emt 0:00:33]} Qb6 {[%emt 0:10:51]} 10. a3 {[%emt 0:03:45]} O-O-O {[%emt 0:12:35]} 11. b4 {[%emt 0:01:20]} Bg4 {[%emt 0:08:54]} 12. Na4 {[%emt 0:00:48]} Qc7 {[%emt 0:00:07]} 13. O-O {[%emt 0:00:15]} Nb6 {[%emt 0:05:09]} 14. c3 {[%emt 0:05:52]} Nxa4 {[%emt 0:15:25]} 15. Qxa4 {[%emt 0:00:13]} Qf4 {[%emt 0:02:06]} 16. Rae1 {[%emt 0:21:32]} Bxf3 {[%emt 0:02:10]} 17. Rxf3 {[%emt 0:00:13]} Qh4 {[%emt 0:05:41]} 18. g3 {[%emt 0:01:01]} Qg5 {[%emt 0:02:20]} 19. Qxa7 {[%emt 0:07:55]} Bd6 {[%emt 0:05:11]} 20. e5 {[%emt 0:04:21]} Bb8 {[%emt 0:02:37]} 21. Qa5 {[%emt 0:00:12]} g6 {[%emt 0:02:11]} 22. b5 {[%emt 0:02:59]} Qd2 {[%emt 0:03:34]} 23. Re2 {[%emt 0:01:13]} Qd1+ {[%emt 0:00:36]} 24. Kg2 {[%emt 0:00:19]} c5 {[%emt 0:01:02]} 25. b6 {[%emt 0:00:30]} Rd5 {[%emt 0:01:16]} 26. c4 {[%emt 0:00:25]} Rd7 {[%emt 0:00:34]} 27. Qxc5+ {[%emt 0:00:48]} Kd8 {[%emt 0:00:02]} 28. exf6 {[%emt 0:00:47]} h5 {[%emt 0:01:11]} 29. Re7 {[%emt 0:08:28]} Qd2+ {[%emt 0:00:07]} 30. Be2 {[%emt 0:05:27]} Bd6 {[%emt 0:00:09]} 31. Rxd7+ {[%emt 0:00:25]} Kxd7 {[%emt 0:00:05]} 32. Qb5+ {[%emt 0:00:07]} Kd8 {[%emt 0:00:05]} 33. c5 {[%emt 0:00:10]} Bb8 {[%emt 0:02:12]} 34. Qd3 {[%emt 0:00:17]} Qxd3 {[%emt 0:00:23]} 35. Bxd3 {[%emt 0:00:06]} h4 {[%emt 0:00:09]} 36. Bc4 {[%emt 0:00:02]} hxg3 {[%emt 0:00:17]} 37. hxg3 {[%emt 0:00:02]} Rf8 {[%emt 0:00:56]} 38. Re3 {[%emt 0:00:09]} Re8 {[%emt 0:00:27]} 39. Rxe8+ {[%emt 0:00:09]} Kxe8 {[%emt 0:00:04]} 40. Bd5 {[%emt 0:00:05]} 1-0

[Event "1000GM NY Winter IM-C 2024"]
[Site "New York"]
[Date "2024.01.13"]
[Round "3.8"]
[White "Kovalchuk, Igor"]
[Black "Mou, Iris"]
[Result "1-0"]
[ECO "D24"]
[WhiteElo "2030"]
[BlackElo "2128"]
[Annotator "RC"]
[PlyCount "84"]
[EventDate "2024.01.10"]
[EventType "swiss"]
[EventCountry "USA"]
[SourceTitle "playchess.com"]
[Source "ChessBase"]
[SourceQuality "1"]
[TimeControl "5400+30"]

1. Nf3 {[%emt 0:00:10]} d5 {[%emt 0:00:13]} 2. d4 {[%emt 0:00:07]} Nf6 {[%emt 0:00:16]} 3. c4 {[%emt 0:00:08]} e6 {[%emt 0:00:08]} 4. Bg5 {[%emt 0:00:07]} dxc4 {[%emt 0:00:20]} 5. Nc3 {[%emt 0:10:35]} a6 {[%emt 0:00:15]} 6. e4 {[%emt 0:02:40]} b5 {[%emt 0:01:54]} 7. e5 {[%emt 0:01:48]} h6 {[%emt 0:00:14]} 8. Bh4 {[%emt 0:14:58]} g5 {[%emt 0:00:18]} 9. Nxg5 {[%emt 0:02:41]} hxg5 {[%emt 0:01:23]} 10. Bxg5 {[%emt 0:00:02]} Nbd7 {[%emt 0:00:16]} 11. exf6 {[%emt 0:02:50]} Bb7 {[%emt 0:04:46]} 12. Be2 {[%emt 0:07:50]} Bxg2 {[%emt 0:05:12]} 13. Rg1 {[%emt 0:00:45]} Rxh2 {[%emt 0:08:33]} 14. Bf3 {[%emt 0:03:46]} Bxf3 {[%emt 0:01:48]} 15. Qxf3 {[%emt 0:00:03]} Nb6 {[%emt 0:07:52]} 16. O-O-O {[%emt 0:02:20]} Nd5 {[%emt 0:06:50]} 17. Rge1 {[%emt 0:00:52]} c6 {[%emt 0:10:58]} 18. Rxe6+ {[%emt 0:01:13]} Kd7 {[%emt 0:00:41]} 19. Re2 {[%emt 0:04:32]} Kc8 {[%emt 0:14:51]} 20. Rde1 {[%emt 0:03:35]} Kb7 {[%emt 0:02:56]} 21. Re8 {[%emt 0:01:32]} Qd7 {[%emt 0:05:50]} 22. Rxa8 {[%emt 0:00:26]} Kxa8 {[%emt 0:03:56]} 23. Nxd5 {[%emt 0:00:51]} cxd5 {[%emt 0:00:21]} 24. Re5 {[%emt 0:00:47]} Bb4 {[%emt 0:09:56]} 25. Rxd5 {[%emt 0:01:18]} Rxf2 {[%emt 0:00:38]} 26. Rxd7+ {[%emt 0:01:42]} Rxf3 {[%emt 0:00:09]} 27. a3 {[%emt 0:02:19]} Rf1+ {[%emt 0:05:03]} 28. Kc2 {[%emt 0:00:16]} Rf2+ {[%emt 0:00:11]} 29. Kb1 {[%emt 0:01:49]} Rf1+ {[%emt 0:02:01]} 30. Ka2 {[%emt 0:00:14]} Ba5 {[%emt 0:02:12]} 31. Rxf7 {[%emt 0:00:38]} Rf2 {[%emt 0:01:12]} 32. Kb1 {[%emt 0:10:12]} Rf1+ {[%emt 0:00:31]} 33. Kc2 {[%emt 0:00:11]} Rf2+ {[%emt 0:00:20]} 34. Kd1 {[%emt 0:00:23]} Rxb2 {[%emt 0:01:26]} 35. Rg7 {[%emt 0:05:17]} Rb1+ {[%emt 0:03:25]} 36. Ke2 {[%emt 0:02:08]} Rb2+ {[%emt 0:00:21]} 37. Kf3 {[%emt 0:01:05]} Rb3+ {[%emt 0:00:17]} 38. Ke4 {[%emt 0:00:19]} Rxa3 {[%emt 0:00:11]} 39. Re7 {[%emt 0:02:44]} Ra1 {[%emt 0:01:27]} 40. f7 {[%emt 0:00:24]} Re1+ {[%emt 0:00:28]} 41. Kf5 {[%emt 0:03:11]} Rf1+ {[%emt 0:00:29]} 42. Bf4 {[%emt 0:12:42]} Rh1 {[%emt 0:01:22]} 1-0

[Event "1000GM NY Winter IM-C 2024"]
[Site "New York"]
[Date "2024.01.13"]
[Round "3.9"]
[White "Venkatesh, Narayan"]
[Black "Mede, Istvan"]
[Result "1/2-1/2"]
[ECO "E91"]
[WhiteElo "1965"]
[BlackElo "2187"]
[Annotator "TA"]
[PlyCount "69"]
[EventDate "2024.01.10"]
[EventType "swiss"]
[EventCountry "USA"]
[SourceTitle "playchess.com"]
[Source "ChessBase"]
[SourceQuality "1"]
[TimeControl "5400+30"]

{[%evp 12,69,42,29,57,48,54,45,52,38,45,40,43,42,47,45,39,0,0,0,0,0,0,-16,-12,-20,-23,-27,-18,-48,-69,-68,-48,-68,-29,-77,-18,-27,0,-8,4,0,76,52,56,68,139,41,40,37,26,32,238,15,211,217,358,116,121,119]} 1. d4 {[%emt 0:00:15]} Nf6 {[%emt 0:00:07]} 2. c4 {[%emt 0:00:07]} g6 {[%emt 0:00:03]} 3. Nc3 {[%emt 0:00:07]} Bg7 {[%emt 0:00:03]} 4. e4 {[%emt 0:00:06]} d6 {[%emt 0:00:04]} 5. Be2 {[%emt 0:00:04]} O-O {[%emt 0:00:05]} 6. Be3 {[%emt 0:00:05]} Na6 {[%emt 0:02:34]} 7. Nf3 {[%emt 0:00:15]} c5 {[%emt 0:01:50]} 8. d5 {[%emt 0:05:14]} e6 {[%emt 0:00:45]} 9. O-O {[%emt 0:02:14]} exd5 {[%emt 0:00:11] White is slightly better.} 10. cxd5 {[%emt 0:03:07]} Re8 {[%emt 0:02:34]} 11. Nd2 {[%emt 0:00:27]} Nc7 {[%emt 0:01:10][%cal Ob7b5]} 12. a4 {[%emt 0:03:13]} b6 {[%emt 0:01:13]} 13. Bf4 {[%emt 0:12:14]} Ba6 {[%emt 0:00:58]} 14. Re1 {[%emt 0:08:20]} Bxe2 {[%emt 0:05:46]} 15. Rxe2 {[%emt 0:00:08] aiming for Nc4.} (15. Qxe2 $2 Nfxd5 16. Qf3 Nxf4 17. Qxf4 Qd7 $17) 15... Nh5 {[%emt 0:00:53]} 16. Be3 {[%emt 0:01:04]} Qd7 {[%emt 0:09:59]} 17. f3 {[%emt 0:16:42]} f5 {[%emt 0:05:42]} 18. Qb3 {[%emt 0:09:44]} Rab8 {[%emt 0:03:24]} 19. Qc2 {[%emt 0:14:25]} a6 {[%emt 0:04:35]} 20. Rae1 {[%emt 0:02:33]} b5 {[%emt 0:02:56]} 21. b3 {[%emt 0:05:02]} Qf7 {[%emt 0:17:20]} 22. Nd1 {[%emt 0:07:05]} Qf6 {[%emt 0:06:25]} 23. Nb1 {[%emt 0:03:55]} (23. Nf1 $11) 23... fxe4 {[%emt 0:02:21]} (23... Qe5 $17 {[%cal Rf5e4]} 24. Nf2 Nf4) 24. fxe4 $11 {[%emt 0:00:08]} Qe5 {[%emt 0:06:20] Hoping for ...bxa4.} 25. Nd2 {[%emt 0:01:10]} Nf6 {[%emt 0:00:43]} 26. Nf2 {[%emt 0:05:46] Prevents Ng4.} Qh5 {[%emt 0:02:12] [#]} (26... Nd7 $11 {remains equal.}) 27. Nf3 $1 $16 {[%emt 0:00:00] Bf4 is the strong threat.} Ng4 {[%emt 0:23:47]} 28. Bf4 {[%emt 0:00:00]} Ne5 {[%emt 0:00:00]} (28... Nxf2 $14 29. Rxf2 Nxd5 30. exd5 Rxe1+ 31. Nxe1 Bd4) 29. Nxe5 {[%emt 0:00:00]} (29. Bxe5 $16 Bxe5 30. Nd3) 29... Bxe5 $14 {[%emt 0:00:00]} 30. Bxe5 {[%emt 0:00:14]} Qxe5 {[%emt 0:00:00]} 31. Qd2 {[%emt 0:00:21] Strongly threatening Ng4.} bxa4 $2 {[%emt 0:00:00]} ({Black should try} 31... Re7 $14) 32. bxa4 $2 {[%emt 0:00:09]} (32. Ng4 $18 Qg7 33. e5 (33. bxa4 h5 $14)) 32... Rb4 $2 {[%emt 0:02:30]} (32... Re7 $11 {and Black is okay.}) 33. Ng4 $18 Qg7 {[#]} (33... Qe7 $142) 34. e5 $2 Rxg4 $16 {[%emt 0:01:00]} 35. exd6 {Weighted Error Value: White=0.37/Black=0.46.  Loses game:     	---       	Black=2      Missed win:     	White=2     	---        Mistake:       	White=2     	Black=4      Inaccurate:     	White=2     	Black=1      OK:         	White=8     	Black=9      Best:        	White=2     	Black=3      Strong:       	White=1     	---} 1/2-1/2